Cogmind - Beta 11 *** ADVENTURER MODE // 2022.04.12 @ 11:52:00 Player: Ms Vella Result: Destroyed by S-43 Plague with Heavy Machine Gun Performance ------------- Evolutions (9) 4500 Regions Visited (17) 3400 Robots Destroyed (113) 565 Value Destroyed (3335) 3335 Prototype IDs (32) 640 Alien Tech Used (0) 0 Bonus (1971) 1971 TOTAL SCORE: 14411 Bonus ------- High Alert Combat Kills 149 Follower Combat Kills 1101 Entered DSFs 500 Aligned with FarCom 300 Friendly Fire -79 Cogmind --------- Core Integrity 0/1600 Matter 203/300 Energy 99/100 System Corruption 37% Temperature Cool (0) Movement Core (50) Location -1/Access Parts ------- > --- POWER (2) -------- (None) > --- PROPULSION (6) --- (None) > --- UTILITY (15) ----- Advanced Target Analyzer Hacking Suite > --- WEAPON (2) ------- (None) > --- INVENTORY (5) ---- Micro Antimatter Reactor Advanced Particle Charger Improved Recalibrator Variable Charge Gun Power Maul Peak State ------------ > --- POWER ------------ Micro Antimatter Reactor Micro Antimatter Reactor > --- PROPULSION ------- Improved Antigrav System Improved Antigrav System Improved Antigrav System Improved Antigrav System Improved Gyrokinetic Inverter Combat Linear Gravjet > --- UTILITY ---------- Advanced Cooling System Medium Storage Unit Superbattery Matter Compressor Improved Transmission Jammer Improved Force Field Hacking Suite System Shield Improved Component Analysis Suite Improved System Guard > --- WEAPON ----------- Beamcaster Hypervelocity Railgun > --- INVENTORY -------- Improved Antigrav System Improved Gyrokinetic Inverter Advanced Particle Charger Improved Recalibrator Variable Charge Gun Hypervelocity Railgun Hypervelocity Railgun Hypervelocity Railgun Power Maul [Rating: 133] Favorites ----------- Power Micro Fission Core Engine Heavy Ion Engine Power Core Micro Fission Core Reactor Micro Antimatter Reactor Propulsion Aluminum Leg Leg Aluminum Leg Hover Unit Improved Antigrav System Utility Hacking Suite Device Advanced Cooling System Storage High-capacity Storage Unit Processor Advanced Target Analyzer Hackware Hacking Suite Protection Improved Light Armor Plating Weapon Pulse Rifle Energy Gun Pulse Rifle Energy Cannon Heavy Particle Cannon Ballistic Gun Heavy Assault Rifle Launcher Gamma Bomb Array Impact Weapon Power Maul Build | -11 -10 -10 -9 -9 -9 -8 -8 -7 -6 -5 -4 -4 -4 -3 -3 -2 -1 ------- Run | Scr Mat Min Mat Min Exi Min Mat Fac Fac Fac Fac Was Fac Res DSF Res Acc Slots Evolved 18 | . . . 2 . . . 2 2 2 2 2 . . 2 . 2 2 Power 1 | . . . . . . . . . . 1 . . . . . . . Propulsion 4 | . . . 1 . . . 1 . . 1 . . . . . 1 . Utility 13 | . . . 1 . . . 1 2 2 . 2 . . 2 . 1 2 Weapon . | . . . . . . . . . . . . . . . . . . Parts Attached 155 | . 1 3 17 . . 11 4 20 11 11 4 6 32 2 10 5 18 Power 21 | . . 1 2 . . 1 . 2 2 3 . . 4 2 . 2 2 Engine 7 | . . 1 2 . . 1 . 2 1 . . . . . . . . Core 4 | . . . . . . . . . 1 3 . . . . . . . Reactor 10 | . . . . . . . . . . . . . 4 2 . 2 2 Propulsion 52 | . . 2 10 . . 4 . 5 2 6 . 1 10 . 3 . 9 Treads . | . . . . . . . . . . . . . . . . . . Leg 16 | . . 2 10 . . 4 . . . . . . . . . . . Wheel . | . . . . . . . . . . . . . . . . . . Hover 36 | . . . . . . . . 5 2 6 . 1 10 . 3 . 9 Flight . | . . . . . . . . . . . . . . . . . . Utility 44 | . 1 . 3 . . 2 2 7 4 . 4 3 10 . 2 2 4 Device 22 | . . . . . . 1 1 2 3 . 3 2 6 . 1 1 2 Storage 5 | . 1 . . . . . . 1 1 . . . 1 . 1 . . Processor 4 | . . . . . . . . 1 . . . . . . . 1 2 Hackware 5 | . . . 1 . . . 1 3 . . . . . . . . . Protection 8 | . . . 2 . . 1 . . . . 1 1 3 . . . . Artifact . | . . . . . . . . . . . . . . . . . . Weapon 38 | . . . 2 . . 4 2 6 3 2 . 2 8 . 5 1 3 Energy Gun 24 | . . . . . . 3 2 5 2 2 . 2 6 . 1 1 . Energy Cannon 2 | . . . . . . . . 1 1 . . . . . . . . Ballistic Gun 5 | . . . 2 . . . . . . . . . . . 1 . 2 Ballistic Cannon . | . . . . . . . . . . . . . . . . . . Launcher 6 | . . . . . . 1 . . . . . . 2 . 2 . 1 Special Weapon . | . . . . . . . . . . . . . . . . . . Impact Weapon 1 | . . . . . . . . . . . . . . . 1 . . Slashing Weapon . | . . . . . . . . . . . . . . . . . . Piercing Weapon . | . . . . . . . . . . . . . . . . . . Special Melee Weapon . | . . . . . . . . . . . . . . . . . . Unidentified Prototypes 4 | . . . 1 . . . . 2 1 . . . . . . . . Corrupted Parts 1 | . . . . . . . . . . . . . . . . . 1 System Corruption 9 | . . . . . . . . . . . . . . . . . 9 Parts Lost 59 | . . . 2 . . 8 . 1 1 4 3 . 5 . 7 . 28 Power 5 | . . . . . . . . . . . 1 . 1 . . . 3 Propulsion 23 | . . . 2 . . 3 . 1 1 2 1 . 1 . 3 . 9 Utility 22 | . . . . . . 3 . . . 2 . . 3 . 3 . 11 Weapon 9 | . . . . . . 2 . . . . 1 . . . 1 . 5 Highest Loss Streak 13 | . . . 1 . . 6 . 1 1 4 2 . 1 . 5 . 13 To Critical Strikes . | . . . . . . . . . . . . . . . . . . Average Slot Usage (%) 84 | . 85 85 82 100 100 86 73 95 90 87 58 63 92 82 76 71 65 Engine 6 | . 14 14 11 11 11 11 9 6 1 . . . . . . . . Core 1 | . . . . . . . . . 4 11 9 5 1 . . . . Reactor 1 | . . . . . . . . . . . . . 7 6 9 8 6 Leg 14 | . 28 28 28 33 33 27 18 . . . . . . . . . . Hover 10 | . . . . . . . . 26 24 28 11 10 24 23 22 21 20 Device 7 | . . . . . . 2 14 13 11 5 12 16 19 19 12 11 8 Storage 9 | . 14 14 11 11 11 11 9 7 6 5 5 5 9 9 10 13 11 Hackware 8 | . . . 4 11 11 . 4 21 26 22 10 10 10 9 9 8 5 Protection 3 | . . . 4 11 11 12 . . . . . 4 7 4 2 . . Energy Gun 6 | . . . . . . 8 17 14 12 11 6 9 9 9 5 2 1 Ballistic Gun 10 | . 28 28 22 22 22 12 . . . . . . . . 1 4 4 Naked Turns . | . . . . . . . . . . . . . . . . . . Heaviest Build 65 | 11 46 46 62 62 62 65 56 21 27 34 34 39 65 61 63 62 64 Greatest Support 77 | 20 20 20 30 30 30 35 29 36 28 48 30 39 65 65 65 65 77 Greatest Overweight (x) 20 | . 2 2 20 2 2 5 2 . . . 1 3 1 . . . 1 Average Overweight (x) . | . . 2 1 2 2 1 1 . . . . 1 . . . . . Largest Inventory Capacity 20 | 8 20 20 20 20 20 20 20 20 10 10 10 10 10 10 10 10 10 Average Capacity 14 | 8 9 20 20 20 20 20 20 8 8 10 10 10 10 10 10 10 9 Most Carried 20 | 6 7 15 20 20 20 20 20 20 10 10 10 10 10 10 10 9 10 Average Carried 12 | 6 4 10 14 20 19 19 19 7 8 9 9 9 9 10 9 8 7 Final Capacity 20 | 8 20 20 20 20 20 20 20 8 10 10 10 10 10 10 10 10 5 Final Carried 20 | 6 7 13 20 20 20 20 20 8 10 10 10 10 10 10 9 8 5 Class Distribution -------------------- 33% | Hacker-Mutant 27% | Scavenger-Mutant 22% | Mutant 12% | Hacker-Scout 5% | Hacker-Skirmisher Dominant Class ---------------- Mutant | -10/Materials Mutant | -10/Mines Scavenger-Mutant | -9/Materials Scavenger-Mutant | -9/Mines Scavenger-Mutant | -9/Exiles Scavenger-Mutant | -8/Mines Hacker-Mutant | -8/Materials Hacker-Mutant | -7/Factory Hacker-Scout | -6/Factory Hacker-Scout | -5/Factory Hacker-Mutant | -4/Factory Hacker-Skirmisher | -4/Waste Hacker-Mutant | -4/Factory Hacker-Mutant | -3/Research Hacker-Mutant | -3/DSF Hacker-Mutant | -2/Research Hacker-Mutant | -1/Access Resources | -11 -10 -10 -9 -9 -9 -8 -8 -7 -6 -5 -4 -4 -4 -3 -3 -2 -1 ----------- Run | Scr Mat Min Mat Min Exi Min Mat Fac Fac Fac Fac Was Fac Res DSF Res Acc Matter Collected 2637 | 180 36 303 316 67 . 313 190 140 120 191 . . 346 . 10 49 376 Remotely . | . . . . . . . . . . . . . . . . . . Salvage Created 4153 | . 305 126 603 33 . 478 105 225 957 39 91 . 680 . 122 49 340 Parts 235 | . 27 14 49 5 . 17 10 13 25 1 2 . 39 . 7 3 23 Haulers Intercepted . | . . . . . . . . . . . . . . . . . . Recyclers Shooed 7 | . 1 . 1 . . . . . 5 . . . . . . . . Parts Field Recycled . | . . . . . . . . . . . . . . . . . . Retrieved Matter . | . . . . . . . . . . . . . . . . . . Parts Self-Destructed . | . . . . . . . . . . . . . . . . . . Prevented . | . . . . . . . . . . . . . . . . . . Kills | -11 -10 -10 -9 -9 -9 -8 -8 -7 -6 -5 -4 -4 -4 -3 -3 -2 -1 ------- Run | Scr Mat Min Mat Min Exi Min Mat Fac Fac Fac Fac Was Fac Res DSF Res Acc Combat Hostiles Destroyed 88 | . 8 8 15 2 . 12 5 7 5 1 2 . 17 . 2 . 4 Guns 72 | . 8 8 15 2 . 9 5 7 5 1 2 . 8 . . . 2 AOE 12 | . . . . . . 3 . . . . . . 7 . 2 . . Classes Destroyed 13 | . 4 . 5 . . . . 1 1 . . . 1 . 1 . . Worker 4 | . . . 1 . . . . . 1 . . . . . . 2 . Builder 2 | . . . 1 . . . . . . . . . 1 . . . . Tunneler 1 | . 1 . . . . . . . . . . . . . . . . Recycler 7 | . . . 1 . . . . . 6 . . . . . . . . Operator 4 | . . . 2 . . . . . 1 . . . 1 . . . . Watcher 7 | . 2 . 2 . . . 1 1 1 . . . . . . . . Swarmer 45 | . 3 8 9 2 . 3 4 4 3 . . . 9 . . . . Cutter 2 | . . . . . . . . . . . . . . . 2 . . Grunt 25 | . 5 . 5 . . 9 . 2 1 . . . 1 . . . 2 Sentry 4 | . . . 1 . . . 1 . . . . . 2 . . . . Hunter 1 | . . . . . . . . . . . . . 1 . . . . Programmer 9 | . . . . . . . . 1 . 1 2 . 3 . . . 2 Heavy 2 | . . . . . . . . . 1 . . . 1 . . . . Best Kill Streak 7 | . 4 3 5 2 . 3 2 4 3 1 2 . 7 . 2 2 2 Combat Bots Only 6 | . 3 3 4 2 . 3 2 4 3 1 2 . 6 . 2 . 2 Max Kills in Single Turn 4 | . 1 2 2 2 . 1 1 1 1 1 1 . 4 . 1 1 1 Gunslinging 1 | . . 1 1 1 . . . . . . . . . . . . . Exploded 3 | . . . . . . 1 . . . . . . 3 . 1 . . Melee . | . . . . . . . . . . . . . . . . . . Uniques/NPCs Destroyed . | . . . . . . . . . . . . . . . . . . Combat | -11 -10 -10 -9 -9 -9 -8 -8 -7 -6 -5 -4 -4 -4 -3 -3 -2 -1 -------- Run | Scr Mat Min Mat Min Exi Min Mat Fac Fac Fac Fac Was Fac Res DSF Res Acc Damage Taken 8408 | . 176 150 514 41 . 950 147 221 104 537 323 . 672 . 805 81 3687 Core 2383 | . 8 18 81 6 . 117 59 55 37 214 66 . 31 . 65 20 1606 Absorbed by Shields 79 | . . . . . . . . . . . . . . . . . 79 Regen/Repaired (Parts) 374 | . . . . . . . . 165 . 33 . . 176 . . . . Core Remaining (%) 87 | 100 . 89 . . . 49 89 92 95 78 . . 91 . 95 98 . Volleys Fired 293 | . 32 11 50 3 . 43 12 16 34 10 11 . 40 . 7 . 24 Largest 2 | . 2 2 2 2 . 2 2 2 2 2 2 . 2 . 1 . 2 Hottest 225 | . 40 40 46 46 . 88 126 126 126 225 126 . 225 . 75 . 115 Shots Fired 522 | . 64 22 100 6 . 66 24 31 66 16 13 1 73 . 7 . 33 Gun 502 | . 64 22 100 6 . 63 24 30 64 16 13 1 69 . 3 . 27 Cannon 3 | . . . . . . . . 1 2 . . . . . . . . Launcher 17 | . . . . . . 3 . . . . . . 4 . 4 . 6 Special . | . . . . . . . . . . . . . . . . . . Kinetic 270 | . 64 22 100 6 . 55 . . . . . . . . . . 23 Thermal 217 | . . . . . . 8 24 31 64 16 13 1 53 . 3 . 4 Explosive 11 | . . . . . . 3 . . . . . . 4 . 4 . . Electromagnetic 24 | . . . . . . . . . 2 . . . 16 . . . 6 Robot Hit Streak 33 | . 11 12 11 4 . 23 12 20 20 9 8 . 20 . . . 33 Robot Miss Streak 3 | . 2 2 3 2 . 2 1 1 2 1 1 1 2 . . . 3 Penetration Max 1 | . . . . . . . . . . . . . . . . . 1 Secondary Targets 20 | . 1 3 6 1 . 2 . 3 2 . . . 2 . . . . Max Gunslinging Chain 1 | . 1 1 1 1 . 1 . 1 1 . . . 1 . . . . Shots Hit Robots 391 | . 45 13 70 4 . 53 20 22 51 10 11 . 63 . 1 . 28 Core Hits 225 | . 19 10 33 2 . 28 8 13 29 5 4 1 29 . 12 3 29 Critical Kills 3 | . . . . . . 1 . . . . . . . . . . 2 Critical Parts Destroyed 8 | . . . . . . . . . . . . . . . 1 . 7 Critical Strikes 24 | . . . . . . 1 1 1 4 2 1 . 3 . 1 . 10 Burn 13 | . . . . . . . 1 1 4 2 1 . 3 . . . 1 Destroy 10 | . . . . . . 1 . . . . . . . . . . 9 Smash 1 | . . . . . . . . . . . . . . . 1 . . Melee Attacks 1 | . . . . . . . . . . . . . . . 1 . . Impact 1 | . . . . . . . . . . . . . . . 1 . . Slashing . | . . . . . . . . . . . . . . . . . . Piercing . | . . . . . . . . . . . . . . . . . . Sneak Attacks . | . . . . . . . . . . . . . . . . . . Combat Hostiles . | . . . . . . . . . . . . . . . . . . Follow-up Attacks . | . . . . . . . . . . . . . . . . . . Damage Inflicted 9800 | . 486 160 949 66 . 970 345 386 904 373 230 22 2195 . 1284 165 1265 Guns 6274 | . 486 148 949 66 . 810 345 386 851 219 230 22 1436 . . . 326 Cannons 53 | . . . . . . . . . 53 . . . . . . . . Explosions 2688 | . . . . . . 140 . . . . . . 759 . 1242 . 547 Melee 42 | . . . . . . . . . . . . . . . 42 . . Ramming 743 | . . 12 . . . 20 . . . 154 . . . . . 165 392 Kinetic 2557 | . 486 148 949 66 . 687 . . . . . . . . . . 221 Thermal 3373 | . . . . . . 123 345 386 851 219 230 22 1092 . . . 105 Explosive 2108 | . . . . . . 140 . . . . . . 726 . 1242 . . Electromagnetic 977 | . . . . . . . . . 53 . . . 377 . . . 547 Impact 42 | . . . . . . . . . . . . . . . 42 . . Slashing . | . . . . . . . . . . . . . . . . . . Piercing . | . . . . . . . . . . . . . . . . . . Highest Corruption 37 | . . . . . . . . . . 8 2 2 4 . . 2 37 Average Corruption 5 | . . . . . . . . . . 1 1 2 2 . . 2 21 Corruption Purged . | . . . . . . . . . . . . . . . . . . Corruption Blocked . | . . . . . . . . . . . . . . . . . . Effects 55 | . . . . . . . . . . 2 2 9 17 . . 1 24 Message Errors 15 | . . . . . . . . . . . . 1 5 . . 1 8 Matter Fused 13 | . . . . . . . . . . 1 1 1 7 . . . 3 Heat Flow Errors 5 | . . . . . . . . . . . . 1 1 . . . 3 Energy Discharges 7 | . . . . . . . . . . 1 . 3 1 . . . 2 Parts Rejected 1 | . . . . . . . . . . . 1 . . . . . . Data Loss (minor) 5 | . . . . . . . . . . . . 2 1 . . . 2 Data Loss (major) 1 | . . . . . . . . . . . . . . . . . 1 Misfires 4 | . . . . . . . . . . . . 1 1 . . . 2 Misdirections 3 | . . . . . . . . . . . . . . . . . 3 Weapon Failures 1 | . . . . . . . . . . . . . 1 . . . . Overload Shots 4 | . . . . . . . . . . 3 . . 1 . . . . Effects 1 | . . . . . . . . . . 1 . . . . . . . Energy Bleed 1 | . . . . . . . . . . 1 . . . . . . . Overflow Damage 161 | . . . . . . 2 . . . 23 . . 30 . 42 32 32 Projectiles . | . . . . . . . . . . . . . . . . . . Explosions 32 | . . . . . . 2 . . . . . . 30 . . . . Melee 129 | . . . . . . . . . . 23 . . . . 42 32 32 Knockbacks 5 | . . . . . . . . . . 3 . . . . . . 2 Impact 4 | . . . . . . . . . . 2 . . . . . . 2 Kinetic . | . . . . . . . . . . . . . . . . . . Secondary 1 | . . . . . . . . . . 1 . . . . . . . Self-Inflicted Damage 396 | . . . . . . 15 . . . 73 . . . . 34 81 193 Shots 3 | . . . . . . 1 . . . . . . . . 1 . 1 Rammed 42 | . . . . . . . . . . 11 . . . . . 8 23 Targets Rammed 49 | . . 4 . . . 3 . . . 11 . . . . . 8 23 Kicked 7 | . . 4 . . . 3 . . . . . . . . . . . Crushed . | . . . . . . . . . . . . . . . . . . Highest Temperature 626 | . 12 . 45 . . 250 8 80 357 626 392 230 285 126 . . 462 Average Temperature 139 | . 6 . 15 . . 125 6 35 123 181 206 99 89 46 . . 193 Received Heat Transfer 1396 | . 102 . 255 . . 720 18 9 . 99 9 . 45 . . . 139 Effects 35 | . . . . . . 2 . . 1 13 2 . 2 . . . 15 Shutdowns 9 | . . . . . . . . . . 2 1 . . . . . 6 Energy Bleed 4 | . . . . . . . . . . 1 . . 1 . . . 2 Interference 11 | . . . . . . 2 . . . 5 . . 1 . . . 3 Matter Decay 4 | . . . . . . . . . . 3 . . . . . . 1 Short Circuit 5 | . . . . . . . . . 1 1 1 . . . . . 2 Damage (minor) 1 | . . . . . . . . . . . . . . . . . 1 Damage (core) 1 | . . . . . . . . . . 1 . . . . . . . Siege Activations . | . . . . . . . . . . . . . . . . . . Robots Corrupted 4 | . . . . . . . . . . . . . 2 . . . 2 Combat Hostiles 4 | . . . . . . . . . . . . . 2 . . . 2 Parts Fried 4 | . . . . . . . . . . . . . 2 . . . 2 Impact Corruptions 6 | . . . . . . . . . . 1 . . . . 1 1 3 Robots Melted 2 | . . . . . . . . 1 1 . . . . . . . . Combat Hostiles . | . . . . . . . . . . . . . . . . . . Parts Melted 13 | . . . . . . 1 2 . 4 1 1 . 4 . . . . Heat Transferred 7437 | . . . . . . 296 814 888 2146 555 481 37 1998 . . . 222 Parts Sabotaged . | . . . . . . . . . . . . . . . . . . Parts Stolen . | . . . . . . . . . . . . . . . . . . Parts Stripped . | . . . . . . . . . . . . . . . . . . Power Chain Reactions 1 | . . . . . . . . . . . . . 1 . . . . Missiles Intercepted . | . . . . . . . . . . . . . . . . . . Alert | -11 -10 -10 -9 -9 -9 -8 -8 -7 -6 -5 -4 -4 -4 -3 -3 -2 -1 ------- Run | Scr Mat Min Mat Min Exi Min Mat Fac Fac Fac Fac Was Fac Res DSF Res Acc Peak Influence 657 | . 235 154 188 86 . 130 103 148 179 231 240 67 657 230 320 184 98 Initial 197 | . . 19 . 36 . . 22 22 . 48 80 67 . 197 152 147 29 Average 98 | . 89 22 56 84 . 41 34 49 111 74 144 43 373 223 266 118 63 Maximum Alert Level 2 | . 1 . . . . . . . . 1 1 . 2 1 1 . . Low Security (%) 86 | 100 83 100 100 100 . 100 100 100 100 95 68 100 13 12 17 100 100 Level 1 6 | . 16 . . . . . . . . 4 31 . 26 87 82 . . Level 2 6 | . . . . . . . . . . . . . 60 . . . . Level 3 . | . . . . . . . . . . . . . . . . . . Level 4 . | . . . . . . . . . . . . . . . . . . Level 5 . | . . . . . . . . . . . . . . . . . . High Security . | . . . . . . . . . . . . . . . . . . Max Security . | . . . . . . . . . . . . . . . . . . Squads Dispatched 28 | . 3 1 2 . . . . . 2 5 2 . 5 . 3 . 5 Investigation 9 | . 3 1 . . . . . . 1 2 1 . 1 . . . . Extermination 6 | . . . . . . . . . . 1 1 . 2 . . . 2 Reinforcement 12 | . . . 2 . . . . . 1 2 . . 2 . 3 . 2 Assault 1 | . . . . . . . . . . . . . . . . . 1 Garrison . | . . . . . . . . . . . . . . . . . . Intercept . | . . . . . . . . . . . . . . . . . . Searches Triggered . | . . . . . . . . . . . . . . . . . . Construction Impeded . | . . . . . . . . . . . . . . . . . . Haulers Reinforced 2 | . . . . . . . . . . 1 . . . . . . 1 Active Scanning Responses 4 | . . . . . . . . . . 2 1 . 1 . . . . Cargo Convoy Interrupts . | . . . . . . . . . . . . . . . . . . Stealth | -11 -10 -10 -9 -9 -9 -8 -8 -7 -6 -5 -4 -4 -4 -3 -3 -2 -1 --------- Run | Scr Mat Min Mat Min Exi Min Mat Fac Fac Fac Fac Was Fac Res DSF Res Acc Distress Signals 11 | . . . 3 . . . 2 . 1 . 2 . 2 . . . 1 Communications Jammed 16 | . . . . . . . . . . . 3 . 11 . . . 2 Distress Signals 16 | . . . . . . . . . . . 3 . 11 . . . 2 Times Spotted 200 | . 10 9 30 3 . 12 11 11 10 14 5 . 39 . 13 3 30 Peak Tracking Total 10 | . 3 3 6 3 . 3 3 4 3 10 4 . 5 . 9 3 10 Tactical Retreats 13 | . . . . . . . . . . . 2 . 1 . 3 . 7 Traps | -11 -10 -10 -9 -9 -9 -8 -8 -7 -6 -5 -4 -4 -4 -3 -3 -2 -1 ------- Run | Scr Mat Min Mat Min Exi Min Mat Fac Fac Fac Fac Was Fac Res DSF Res Acc Traps Triggered 6 | . 2 . . . . . . . . . 1 . 2 . 1 . . Indirectly . | . . . . . . . . . . . . . . . . . . Trap Hack Attempts . | . . . . . . . . . . . . . . . . . . Triggered . | . . . . . . . . . . . . . . . . . . Disarmed 6 | . . . . . . . 6 . . . . . . . . . . Reprogrammed . | . . . . . . . . . . . . . . . . . . Reused . | . . . . . . . . . . . . . . . . . . Traps Extracted . | . . . . . . . . . . . . . . . . . . Installed . | . . . . . . . . . . . . . . . . . . Triggered . | . . . . . . . . . . . . . . . . . . Machines | -11 -10 -10 -9 -9 -9 -8 -8 -7 -6 -5 -4 -4 -4 -3 -3 -2 -1 ---------- Run | Scr Mat Min Mat Min Exi Min Mat Fac Fac Fac Fac Was Fac Res DSF Res Acc Machines Disabled 3 | . . . . . . . . . . . . . 2 . 1 . . Max in Single Turn 1 | . . . . . . . . . . . . . 1 . 1 . . Garrison Access 1 | . . . . . . . . . . . . . . . . . 1 Machines Sabotaged . | . . . . . . . . . . . . . . . . . . Garrisons Compromised . | . . . . . . . . . . . . . . . . . . Overloaded Fab Kills . | . . . . . . . . . . . . . . . . . . Hacking | -11 -10 -10 -9 -9 -9 -8 -8 -7 -6 -5 -4 -4 -4 -3 -3 -2 -1 --------- Run | Scr Mat Min Mat Min Exi Min Mat Fac Fac Fac Fac Was Fac Res DSF Res Acc Machines Accessed 48 | . 3 2 5 . 2 . 4 10 2 4 1 . 7 3 . 4 1 Terminals 32 | . 3 1 3 . . . 4 6 1 2 1 . 6 2 . 2 1 Fabricators 3 | . . . . . . . . 1 1 . . . . . . 1 . Repair Stations 6 | . . . 1 . . . . 2 . 2 . . 1 . . . . Recycling Units 1 | . . . . . . . . 1 . . . . . . . . . Scanalyzers 3 | . . . 1 . . . . . . . . . . 1 . 1 . Garrison Access . | . . . . . . . . . . . . . . . . . . Total Hacks 165 | . 9 4 15 . 2 . 19 49 8 10 2 . 20 7 . 15 5 Successful 106 | . 5 1 14 . 2 . 12 38 4 7 . . 7 4 . 8 4 Failed 59 | . 4 3 1 . . . 7 11 4 3 2 . 13 3 . 7 1 Catastrophic 7 | . 1 . . . . . . 2 . . . . 3 . . 1 . Database Lockouts . | . . . . . . . . . . . . . . . . . . Manual 94 | . 8 3 4 . 1 . 13 25 . 6 2 . 15 3 . 9 5 Terminals 126 | . 9 3 8 . . . 19 37 3 6 2 . 18 5 . 11 5 Fabricators 10 | . . . . . . . . 3 5 . . . . . . 2 . Repair Stations 16 | . . . 2 . . . . 8 . 4 . . 2 . . . . Recycling Units 1 | . . . . . . . . 1 . . . . . . . . . Scanalyzers 9 | . . . 5 . . . . . . . . . . 2 . 2 . Garrison Access . | . . . . . . . . . . . . . . . . . . Terminal Hacks 62 | . 1 1 4 . 2 . 11 27 3 2 . . 4 1 . 3 3 Record 1 | . . . . . 1 . . . . . . . . . . . . Part Schematic 2 | . . . . . . . . 2 . . . . . . . . . Robot Schematic 5 | . . . . . . . . 3 2 . . . . . . . . Robot Analysis 1 | . . . . . . . 1 . . . . . . . . . . Prototype ID Bank 2 | . . . . . . . . 2 . . . . . . . . . Open Door 1 | . . 1 . . . . . . . . . . . . . . . Open DSF 1 | . . . . . . . . . . . . . . 1 . . . Level Access Points 5 | . . . . . . . 1 1 . 1 . . 1 . . . 1 Branch Access Points 4 | . 1 . 1 . . . . 1 1 . . . . . . . . Emergency Access Points 1 | . . . . . . . 1 . . . . . . . . . . Terminal Index 4 | . . . . . . . . 1 . . . . 1 . . 1 1 Fabricator Index 1 | . . . . . . . . 1 . . . . . . . . . Repair Station Index 1 | . . . . . . . . 1 . . . . . . . . . Scanalyzer Index 1 | . . . . . . . . 1 . . . . . . . . . Garrison Index 1 | . . . . . . . . 1 . . . . . . . . . Alert Level 2 | . . . 1 . . . . . . . . . 1 . . . . Unreport Threat 8 | . . . 2 . . . 2 2 . . . . 1 . . 1 . Disarm Traps 1 | . . . . . . . 1 . . . . . . . . . . Zone Layout 19 | . . . . . . . 5 11 . 1 . . . . . 1 1 EX-Prototype ID Bank 1 | . . . . . 1 . . . . . . . . . . . . Fabricator Hacks 2 | . . . . . . . . 1 1 . . . . . . . . Load Schematic 1 | . . . . . . . . . 1 . . . . . . . . Build 1 | . . . . . . . . 1 . . . . . . . . . Repair Station Hacks 16 | . . . 2 . . . . 8 . 4 . . 2 . . . . Scan Component 7 | . . . . . . . . 4 . 2 . . 1 . . . . Repair 7 | . . . . . . . . 4 . 2 . . 1 . . . . Refit 2 | . . . 2 . . . . . . . . . . . . . . Recycling Unit Hacks . | . . . . . . . . . . . . . . . . . . Scanalyzer 9 | . . . 5 . . . . . . . . . . 2 . 2 . Insert Component 4 | . . . 2 . . . . . . . . . . 1 . 1 . Analyze 5 | . . . 3 . . . . . . . . . . 1 . 1 . Garrison Access Hacks . | . . . . . . . . . . . . . . . . . . Unauthorized Hacks 17 | . 4 . 3 . . . 1 2 . 1 . . 1 1 . 3 1 Terminals 16 | . 4 . 3 . . . 1 1 . 1 . . 1 1 . 3 1 Track 2 | . 1 . 1 . . . . . . . . . . . . . . Assimilate 3 | . . . . . . . 1 . . . . . . . . 2 . Botnet 10 | . 2 . 2 . . . . 1 . 1 . . 1 1 . 1 1 Operators 1 | . 1 . . . . . . . . . . . . . . . . Fabricators . | . . . . . . . . . . . . . . . . . . Repair Stations . | . . . . . . . . . . . . . . . . . . Recycling Units 1 | . . . . . . . . 1 . . . . . . . . . Recyclers 1 | . . . . . . . . 1 . . . . . . . . . Scanalyzers . | . . . . . . . . . . . . . . . . . . Garrison Access . | . . . . . . . . . . . . . . . . . . Data Cores Recovered 3 | . . . 1 . . . . . 1 . . . 1 . . . . Used 2 | . . . . . . . . . 1 . . . 1 . . . . Hacking Detections 42 | . 3 1 5 . . . 4 9 2 3 1 . 7 3 . 3 1 Full Trace Events 2 | . 1 . . . . . . . 1 . . . . . . . . Feedback Events . | . . . . . . . . . . . . . . . . . . Feedback Blocked . | . . . . . . . . . . . . . . . . . . Robot Schematics Acquired 5 | . . . . . . . . 3 2 . . . . . . . . Robots Built 3 | . . . . . . . . 3 . . . . . . . . . Authchips . | . . . . . . . . . . . . . . . . . . Time 38 | . . . . . . . . 38 . . . . . . . . . Total Robot Build Rating 9 | . . . . . . . . 9 . . . . . . . . . Part Schematics Acquired 6 | . . . 2 . . . . 2 . . . . . 1 . 1 . Parts Built . | . . . . . . . . . . . . . . . . . . Authchips . | . . . . . . . . . . . . . . . . . . Time . | . . . . . . . . . . . . . . . . . . Total Part Build Rating . | . . . . . . . . . . . . . . . . . . Parts Repaired 7 | . . . . . . . . 4 . 2 . . 1 . . . . Time 166 | . . . . . . . . 82 . 60 . . 24 . . . . Parts Recycled . | . . . . . . . . . . . . . . . . . . Recycled Matter . | . . . . . . . . . . . . . . . . . . Retrieved Matter . | . . . . . . . . . . . . . . . . . . Retrieved Components . | . . . . . . . . . . . . . . . . . . Parts Scanalyzed 4 | . . . 2 . . . . . . . . . . 1 . 1 . Part Schematics Acquired 4 | . . . 2 . . . . . . . . . . 1 . 1 . Parts Damaged 1 | . . . . . . . . . . . . . . . . 1 . Bothacking | -11 -10 -10 -9 -9 -9 -8 -8 -7 -6 -5 -4 -4 -4 -3 -3 -2 -1 ------------ Run | Scr Mat Min Mat Min Exi Min Mat Fac Fac Fac Fac Was Fac Res DSF Res Acc Used RIF Installer . | . . . . . . . . . . . . . . . . . . Robots Hacked . | . . . . . . . . . . . . . . . . . . Non-combat . | . . . . . . . . . . . . . . . . . . Combat . | . . . . . . . . . . . . . . . . . . Robot Hacks Applied . | . . . . . . . . . . . . . . . . . . Relay Couplers Released 2 | . . . . . . . . . . . . . . . . . 2 Machine Destruction 2 | . . . . . . . . . . . . . . . . . 2 Fabnet Peak Effective % . | . . . . . . . . . . . . . . . . . . Robots Rewired 1 | . . . . . . . . . 1 . . . . . . . . Allies Hacked 3 | . . . . . . . . . 1 . . . . . . . 2 Hacks Repelled . | . . . . . . . . . . . . . . . . . . Allies | -11 -10 -10 -9 -9 -9 -8 -8 -7 -6 -5 -4 -4 -4 -3 -3 -2 -1 -------- Run | Scr Mat Min Mat Min Exi Min Mat Fac Fac Fac Fac Was Fac Res DSF Res Acc Total Allies 29 | . . 3 . . . . 1 3 1 . . 20 . . . 1 . Largest Group 20 | . . 2 2 . . . 1 4 4 3 . 20 20 . . 1 1 Highest-Rated Group 709 | . . 41 41 . . . 10 58 74 58 . 709 709 . . 26 26 Highest-Rated Ally 46 | . . 31 31 . . . 10 16 32 32 . 46 46 . . 26 26 Total Orders . | . . . . . . . . . . . . . . . . . . Ally Attacks 257 | . . . 27 . . . . 9 28 11 . . 182 . . . . Total Damage 5491 | . . . 396 . . . . 61 684 235 . . 4115 . . . . Kills 38 | . . . 5 . . . . . 5 1 . . 27 . . . . Allies Corrupted 2 | . . . . . . . . . . . . . 2 . . . . Allies Melted . | . . . . . . . . . . . . . . . . . . Intel | -11 -10 -10 -9 -9 -9 -8 -8 -7 -6 -5 -4 -4 -4 -3 -3 -2 -1 ------- Run | Scr Mat Min Mat Min Exi Min Mat Fac Fac Fac Fac Was Fac Res DSF Res Acc Robot Analysis Total 1 | . . . . . . . 1 . . . . . . . . . . Derelict Logs Recovered 2 | . . 1 . 1 . . . . . . . . . . . . . Drone Launches . | . . . . . . . . . . . . . . . . . . Drone Recoveries . | . . . . . . . . . . . . . . . . . . Exploration | -11 -10 -10 -9 -9 -9 -8 -8 -7 -6 -5 -4 -4 -4 -3 -3 -2 -1 ------------- Run | Scr Mat Min Mat Min Exi Min Mat Fac Fac Fac Fac Was Fac Res DSF Res Acc Turns Passed 11430 | 4 520 1483 1103 204 829 1124 664 833 698 631 278 619 1231 65 114 280 750 Spaces Moved 7443 | 4 289 549 399 76 318 409 272 858 524 750 241 251 1015 120 145 532 691 Core 46 | . . . 2 . . . . . . . . . . . . . 44 Treads . | . . . . . . . . . . . . . . . . . . Legs 2314 | 4 289 549 397 76 318 409 272 . . . . . . . . . . Wheels . | . . . . . . . . . . . . . . . . . . Hover 5083 | . . . . . . . . 858 524 750 241 251 1015 120 145 532 647 Flight . | . . . . . . . . . . . . . . . . . . Fastest Speed 41 | 120 120 260 190 260 260 190 190 55 50 44 52 55 44 44 44 44 41 Average Speed 110 | 120 132 260 228 260 260 222 213 61 51 44 100 165 49 44 44 44 51 Slowest Speed 1050 | 120 260 260 1050 260 260 470 260 65 55 52 111 240 110 44 48 44 121 Overloaded Moves . | . . . . . . . . . . . . . . . . . . Propulsion Burnouts . | . . . . . . . . . . . . . . . . . . Robots Hopped . | . . . . . . . . . . . . . . . . . . Cave-ins Triggered . | . . . . . . . . . . . . . . . . . . Exploration Rate (%) 39 | 2 58 99 52 21 70 79 24 20 14 19 10 95 29 4 89 12 18 Regions Visited 17 Branch Regions 4 Pre-discovered Areas 2 | . . 1 . . 1 . . . . . . . . . . . . Known Exits Taken 8 | . 1 . 1 . . . 1 1 1 1 . . 1 1 . . . Unknown Exits Taken 6 | 1 . 1 . 1 1 1 . . . . . . . . . 1 . Scrap Searched 3 | . . 1 . 1 . 1 . . . . . . . . . . . Spaces Dug 4 | . . . . . . . . . . 3 . . 1 . . . . Terrain Destroyed 85 | . . . . . . 11 . . . 3 . . 12 . 59 . . Melee . | . . . . . . . . . . . . . . . . . . Projectile 4 | . . . . . . . . . . 3 . . 1 . . . . AOE 81 | . . . . . . 11 . . . . . . 11 . 59 . . Terrain Rammed . | . . . . . . . . . . . . . . . . . . Walls Destroyed . | . . . . . . . . . . . . . . . . . . Machines Disabled . | . . . . . . . . . . . . . . . . . . Actions | -11 -10 -10 -9 -9 -9 -8 -8 -7 -6 -5 -4 -4 -4 -3 -3 -2 -1 --------- Run | Scr Mat Min Mat Min Exi Min Mat Fac Fac Fac Fac Was Fac Res DSF Res Acc Total 10109 | 3 373 580 494 78 323 554 335 1133 890 1028 263 451 1664 131 182 575 1052 Wait 2018 | . 40 3 11 . . 85 32 213 307 236 6 190 553 9 14 30 289 Move 7428 | 3 288 548 398 75 317 408 271 857 523 749 241 250 1014 119 145 531 691 Hop . | . . . . . . . . . . . . . . . . . . Pick Up 60 | . 6 7 4 . 3 . 7 10 4 4 . 2 7 . 3 . 3 Fast Attach 79 | . 1 . 12 . . 6 4 11 4 4 3 5 12 2 3 2 10 Attach 27 | . . . 2 . . 1 . 6 1 2 1 1 4 . 3 1 5 Detach 11 | . . . 5 . . 1 . 1 1 . 1 . 2 . . . . Swap 49 | . . 3 3 . . 4 . 3 6 5 . . 16 . 4 2 3 Drop 91 | . 6 4 9 . 3 3 9 16 7 7 . 3 16 1 2 1 4 Fire 293 | . 32 11 50 3 . 43 12 16 34 10 11 . 40 . 7 . 24 Melee 1 | . . . . . . . . . . . . . . . 1 . . Ram 42 | . . . . . . . . . . 11 . . . . . 8 23 Kick 7 | . . 4 . . . 3 . . . . . . . . . . . Crush . | . . . . . . . . . . . . . . . . . . Escape Stasis . | . . . . . . . . . . . . . . . . . . Rewire 3 | . . . . . . . . . 3 . . . . . . . . Trap . | . . . . . . . . . . . . . . . . . . Miscellaneous . | . . . . . . . . . . . . . . . . . . Route ------- -11/Scrapyard -10/Materials (discovered 2 exits: *Mat / *Min) -10/Mines (discovered 2 exits: *Mat x2) -9/Materials (discovered 2 exits: *Mat / *Min) -9/Mines -9/Exiles -8/Mines -8/Materials (discovered 3 exits: *Fac x3) -7/Factory (discovered 6 exits: *Fac x4 / Low x2) -6/Factory (discovered 3 exits: *Fac / Low x2) -5/Factory (discovered 4 exits: *Fac x4) -4/Factory -4/Waste -4/Factory (discovered 4 exits: *Res x4) -3/Research -3/DSF -2/Research -1/Access (discovered 1 exit: Sur) History --------- Turn | Location | Event 1 | -11/Scrapyard | Discovered new exit (range 0) 5 | -11/Scrapyard | Entered Materials 219 | -10/Materials | Discovered new exit (range 14) 304 | -10/Materials | Build established: Mutant 331 | -10/Materials | Discovered new exit (range 14) 348 | -10/Materials | Identified exit to Mines 525 | -10/Materials | Entered Mines 744 | -10/Mines | Discovered new exit (range 8) 941 | -10/Mines | Received a Mining Laser from a helpful Derelict 1050 | -10/Mines | Learned location of Zion (-6) 1085 | -10/Mines | Met a Derelict shopkeep closing up shop 1683 | -10/Mines | Discovered new exit (range 12) 2008 | -10/Mines | Entered Materials 2008 | -9/Materials | Accompanied by 2 allies 2008 | -9/Materials | Evolved 2 slots: Propulsion x1, Utility x1 2013 | -9/Materials | Led the pair of lost Derelicts to an unsafe place 2485 | -9/Materials | Discovered new exit (range 8) 2631 | -9/Materials | Identified exit to Mines 2765 | -9/Materials | Build established: Scavenger-Mutant 3111 | -9/Materials | Entered Mines 3305 | -9/Mines | Deemed a non-threat by the Exiles lab entrance 3305 | -9/Mines | Discovered new exit (range 5) 3315 | -9/Mines | Entered Exiles 3380 | -9/Exiles | Met 8R-AWN 3427 | -9/Exiles | Met EX-HEX 3518 | -9/Exiles | Met EX-BIN 3547 | -9/Exiles | Aligned with FarCom system 3549 | -9/Exiles | Given EX-Vault access code 3612 | -9/Exiles | Opened EX-Vault 3625 | -9/Exiles | Found Superbattery 3676 | -9/Exiles | Warned to stay clear of 0b10 Research branches 3746 | -9/Exiles | Met EX-DEC 4110 | -9/Exiles | Discovered new exit (range 14) 4144 | -9/Exiles | Left Exiles lab with Superbattery 4144 | -9/Exiles | Entered Mines 4801 | -8/Mines | Core integrity fell below 50% 4849 | -8/Mines | Lost 6 parts (2n2u2w) 5250 | -8/Mines | Discovered new exit (range 5) 5268 | -8/Mines | Entered Materials 5268 | -8/Materials | Evolved 2 slots: Propulsion x1, Utility x1 5269 | -8/Materials | Identified exit to Factory 5864 | -8/Materials | Build established: Hacker-Mutant 5932 | -8/Materials | Entered Factory 5932 | -7/Factory | Accompanied by 1 ally 5932 | -7/Factory | Evolved 2 slots: Utility x2 6267 | -7/Factory | Identified exit to Factory 6267 | -7/Factory | Identified exit to Lower Caves 6480 | -7/Factory | Repaired Pulse Rifle 6544 | -7/Factory | Fabricated G-47 Trooper (x3) 6698 | -7/Factory | Repaired Lgt. Deuterium Engine 6718 | -7/Factory | Repaired Pulse Rifle 6745 | -7/Factory | Repaired Adv. Heat Sink 6765 | -7/Factory | Entered another Factory area 6765 | -6/Factory | Accompanied by 4 allies 6765 | -6/Factory | Evolved 2 slots: Utility x2 6921 | -6/Factory | Identified exit to Lower Caves 7124 | -6/Factory | Found Prototype Device 7124 | -6/Factory | Identified Active Sensor Suite 7408 | -6/Factory | Discovered new exit (range 16) 7415 | -6/Factory | Identified exit to Factory 7418 | -6/Factory | Build established: Hacker-Scout 7463 | -6/Factory | Entered another Factory area 7463 | -5/Factory | Accompanied by 3 allies 7463 | -5/Factory | Evolved 2 slots: Power x1, Propulsion x1 7553 | -5/Factory | Identified exit to Factory 7766 | -5/Factory | Repaired Broken Imp. Hover Unit 7803 | -5/Factory | Repaired Imp. Hover Unit 7987 | -5/Factory | Spotted B-75 Beast 8094 | -5/Factory | Entered another Factory area 8094 | -4/Factory | Evolved 2 slots: Utility x2 8122 | -4/Factory | Lost 4 parts (2n2u) 8344 | -4/Factory | Spotted B-86 Titan 8372 | -4/Factory | Sucked down chute 8372 | -4/Factory | Entered Waste 8373 | -4/Waste | Joined by Warlord forces that had cleared the area 8403 | -4/Waste | Build established: Hacker-Mutant 8742 | -4/Waste | Build established: Hacker-Skirmisher 8942 | -4/Waste | Discovered new exit (range 13) 8991 | -4/Waste | Entered Factory 8991 | -4/Factory | Accompanied by 20 allies 9047 | -4/Factory | Repaired Cmb. Linear Gravjet 9426 | -4/Factory | P-70 Sage assimilated allied IT-64Q(l) 9719 | -4/Factory | Build established: Hacker-Mutant 10089 | -4/Factory | Identified exit to Research 10222 | -4/Factory | Entered Research 10222 | -3/Research | Evolved 2 slots: Utility x2 10281 | -3/Research | Identified exit to DSF 10287 | -3/Research | Entered DSF 10307 | -3/DSF | Additional patrols routed to DSF 10392 | -3/DSF | Discovered new exit (range 15) 10401 | -3/DSF | Entered Research 10401 | -2/Research | Evolved 2 slots: Propulsion x1, Utility x1 10413 | -2/Research | Lost 5 parts (2n2u1w) 10452 | -2/Research | Spotted B-90 Cyclops 10660 | -2/Research | Discovered new exit (range 15) 10681 | -2/Research | Entered Access 10681 | -1/Access | Accompanied by 1 ally 10681 | -1/Access | Evolved 2 slots: Utility x2 10695 | -1/Access | Identified exit to Surface 10797 | -1/Access | Spotted B-99 Colossus 11014 | -1/Access | System corruption reached 10% 11035 | -1/Access | Lost 9 parts (1p3n3u2w) 11174 | -1/Access | Found Gamma Bomb Array 11206 | -1/Access | Lost 4 parts (2n1u1w) 11376 | -1/Access | System corruption reached 30% 11392 | -1/Access | Core integrity fell below 50% 11407 | -1/Access | Core integrity fell below 20% 11431 | -1/Access | Destroyed by S-43 Plague with Heavy Machine Gun Last Messages --------------- 11398_ S-43 Plague IFF system glitched. 11399_ Matter Compressor destroyed. 11400_ Broken Imp. Gyrokinetic Inverter destroyed. 11400_ Slug penetrates Wall. 11400_ Dropped Imp. Gyrokinetic Inverter. 11401_ P-80 Master resets S-43 Plague, system corruption cleaned. 11401_ Dropped Imp. Gyrokinetic Inverter. 11402_ P-80 Master resets S-43 Plague, system corruption cleaned. 11402_ Acquired Imp. Gyrokinetic Inverter. 11402_ P-80 Master resets S-43 Plague, system corruption cleaned. 11403_ Penetrated by Slug. 11403_ P-80 Master resets H-88 Terminator, system corruption cleaned. 11406_ Penetrated by Slug. 11406_ Superbattery destroyed. 11406_ Penetrated by Slug. 11408_ K-01 Serf destroyed. 11409_ Imp. Gyrokinetic Inverter destroyed. 11409_ Penetrated by Slug. 11411_ K-01 Serf collects debris. 11419_ <4I0,JSDF 6QP1,FC28LJMKX=L,HCKWAEE Map ----- +----------------------------------------------------+ | ????????????# #?? ??????????????? | | ????????????# #?? ??????????????? | | ????????????+ #???###?????????????? | | ????????????# #???????????????????? | | ????????????# #???????????????????? | | ????????????# ########????????????? | | ????????????# #????????????? | | ????????????# #????????????? | | ????????????# #????????????? | | ????????????+ p +????????????? | | ????????????# #????????????? | | ????????????# pp #????????????? | | ????????????# #????????????? | | ????????????###########s##+#????????????? | | ??????????????# s #????????????? | | ??????????????# #????????????? | | ??????????????# "" #????????????? | | ??????????????# "" s #????????????? | | ??????????????# """""" #????????????? | | ??????????????# """""" #????????????? | | ??????????????# "" #????????????? | | ??????????????# "" #????????????? | | ??????????????# #????????????? | | ??????????????# #????????????? | | ??????????????# * """ """ #????????????? | | ??????????????# """G"""@ #????????????? | | ??????????????##?########/##????????????? | | ????????????????????????# #?????????????? | | ????????????????????????# #?????????????? | | ????????????????????????# #?????????????? | | ????????????????????????# ?????????????? | | ????????????????????????# ?????????????? | | ?????????H??????????????# ?????????????? | | ????????????????????????# ?????????????? | | ????????????????????????? ?????????????? | | ????????????????????????? ?????????????? | | ????????????????????????? ?????????????? | | ????????????????????????? ?????????????? | | ????????????????????????? ?????????????? | | ????????????????????????? ?????????????? | | ????????????????????????? ?????????????? | | ????????????????????????????????????????? | | ????????????????????????????????????????? | | ????????????????????????????????????????? | | ????????????????????????????????????????? | | ????????????????????????????????????????? | | ??????